fUST/lending_fUST_20250414
["ID","MTS","AMOUNT","RATE_DAILY","PERIOD"]
[357945428,1744608633580,-500.0,0.00027397,2]
[357945429,1744608633589,-500.0,0.00027397,2]
[357945430,1744608633600,-500.0,0.00027397,2]
[357945431,1744608633609,-500.0,0.00027397,2]
[357945432,1744608633619,-500.0,0.00027397,2]
[357945433,1744608633629,-1184.33,0.00027397,2]
[357945434,1744608633638,-1540.54,0.00027397,2]
[357945435,1744608633648,-500.0,0.00027397,2]
[357945436,1744608633658,-3283.02,0.00027397,2]
[357945437,1744608633668,-2041.92,0.00027397,2]
[357945438,1744608633677,-500.0,0.00027397,2]
[357945439,1744608633687,-500.0,0.00027397,2]
[357945440,1744608633696,-328.72,0.00027397,2]
[357945441,1744608633706,-500.0,0.00027397,2]
[357945442,1744608633716,-467.98965252,0.00027397,2]
[357945443,1744608633727,-500.0,0.00027397,2]
[357945444,1744608633736,-500.0,0.00027397,2]
[357945445,1744608633746,-500.0,0.00027397,2]
[357945446,1744608633755,-639.71,0.00027397,2]
[357945447,1744608633765,-500.0,0.00027397,2]
[357945448,1744608633775,-1173.45,0.00027397,2]
[357945449,1744608633785,-1120.78,0.00027397,2]
[357945450,1744608633794,-406.14,0.00027397,2]
[357945451,1744608633804,-1534.12,0.00027397,2]
[357945452,1744608633814,-500.0,0.00027397,2]
[357945453,1744608633823,-500.0,0.00027397,5]
[357945454,1744608633833,-500.0,0.000274,5]
[357945455,1744608633843,-500.0,0.000274,5]
[357945456,1744608633852,-151.0,0.00027452,2]
[357945457,1744608633862,-276.72253528,0.00027507,2]
[357945458,1744608633871,-204.17620102,0.000279,7]
[357945459,1744608633881,-312.45808972,0.00028,10]
[357945460,1744608633891,-404.21263537,0.0002878,2]
[357945461,1744608633900,-184.18210767,0.00029097,2]
[357945462,1744608633910,-173.67,0.000292,2]
[357945463,1744608633919,-420.0,0.00029599,2]
[357945464,1744608633929,-420.0,0.00029729,2]
[357945465,1744608633939,-256.65583573,0.00030137,2]
[357945466,1744608633949,-184.18210767,0.00030897,2]
[357945467,1744608633959,-204.17620102,0.000309,9]
[357945468,1744608633969,-178.06390942,0.0003103,2]
[357945469,1744608633979,-587.0,0.00031987,2]
[357945470,1744608633989,-587.0,0.00032269,3]
[357945471,1744608633998,-184.18210767,0.00032698,2]
[357945472,1744608634008,-1000.0,0.00032877,5]
[357945473,1744608634018,-1000.0,0.00032879,5]
[357945474,1744608634028,-1000.0,0.00032879,5]
[357945475,1744608634038,-190.03689011,0.00033,7]
[357945476,1744608634048,-250.0,0.00033304,2]
[357945477,1744608634057,-204.17620102,0.000339,11]
[357945478,1744608634068,-190.0,0.00034,14]
[357945479,1744608634078,-190.0,0.00034,11]
[357945480,1744608634088,-200.0,0.000341,30]
[357945481,1744608634098,-184.18210767,0.00034498,2]
[357945482,1744608634108,-178.06390942,0.00034762,2]
[357945483,1744608634118,-88840.70900675,0.00034808,2]
[357945484,1744608634128,-1713.87546154,0.00034808,3]
[357945485,1744608634138,-105351.30243153,0.00034808,2]
[357945486,1744608634228,-467.09929999,0.00034808,2]
[357945487,1744608634245,-29366.11778981,0.00034808,2]
[357945488,1744608634257,-789.73776817,0.00034808,2]
[357945527,1744608638285,-1699.17,0.00027397,2]
[357945529,1744608638297,-1251.565356,0.00034808,2]
[357945763,1744608640522,-272.95597498,0.00027397,2]
[357946047,1744608643379,-227.04402502,0.00027397,2]
[357946050,1744608643389,-500.0,0.00027397,2]
[357946052,1744608643399,-33030.51841316,0.00034808,2]
[357946057,1744608643439,-8198.95223492,0.00034808,2]
[357946311,1744608646245,-500.0,0.00027397,2]
[357946313,1744608646255,-26.97,0.00034808,2]
[357946316,1744608646267,-4836.11269476,0.00034808,2]
[357946321,1744608646306,-6649.61433301,0.00034808,2]
[357946323,1744608646318,-33845.23520094,0.00034808,2]
[357946911,1744609832301,-264.51,0.00025204,2]
[357946912,1744609832311,-160.0,0.00027068,2]
[357946913,1744609832320,-1000.0,0.00027095,2]
[357946914,1744609832329,-166.24262502,0.00027297,2]
[357946915,1744609832339,-273.20474766,0.00027297,2]
[357946916,1744609832348,-160.0,0.00027357,2]
[357946918,1744609832357,-152.0,0.00027365,2]
[357946919,1744609832367,-300.0,0.00027372,2]
[357946921,1744609832376,-300.0,0.00027372,2]
[357946923,1744609832386,-500.0,0.00027373,2]
[357946925,1744609832396,-500.0,0.00027373,2]
[357946927,1744609832406,-540.10941417,0.00027373,2]
[357946929,1744609832415,-500.0,0.00027394,2]
[357946931,1744609832425,-500.0,0.00027394,2]
[357946934,1744609832434,-500.0,0.00027394,2]
[357946936,1744609832444,-500.0,0.00027394,2]
[357946938,1744609832454,-500.0,0.00027394,2]
[357946940,1744609832463,-500.0,0.00027394,2]
[357946942,1744609832473,-500.0,0.00027394,2]
[357946944,1744609832482,-500.0,0.00027394,2]
[357946946,1744609832491,-500.0,0.00027394,2]
[357946948,1744609832501,-500.0,0.00027394,2]
[357946950,1744609832510,-460.87543525,0.00027394,2]
[357946952,1744609832522,-39.12456475,0.00027394,2]
[357946954,1744609832532,-500.0,0.00027394,2]
[357946956,1744609832542,-500.0,0.00027394,2]
[357946958,1744609832552,-169.70598146,0.00027394,2]
[357946960,1744609832561,-500.0,0.00027394,2]
[357946962,1744609832571,-500.0,0.00027394,2]
[357946964,1744609832581,-500.0,0.00027394,2]
[357946966,1744609832592,-500.0,0.00027394,2]
[357946968,1744609832602,-300.0,0.00027394,2]
[357946970,1744609832612,-500.0,0.00027394,2]
[357946972,1744609832623,-500.0,0.00027394,2]
[357946974,1744609832633,-315.30092,0.00027394,2]
[357946976,1744609832643,-500.0,0.00027394,2]
[357946978,1744609832653,-500.0,0.00027394,2]
[357946980,1744609832663,-500.0,0.00027394,2]
[357946982,1744609832673,-500.0,0.00027394,2]
[357946984,1744609832682,-519.86533621,0.00027394,2]
[357946986,1744609832692,-500.0,0.00027394,2]
[357946988,1744609832701,-500.0,0.00027394,2]
[357946990,1744609832710,-500.0,0.00027394,2]
[357946992,1744609832720,-500.0,0.00027394,2]
[357946994,1744609832729,-500.0,0.00027394,2]
[357946996,1744609832739,-500.0,0.00027394,2]
[357946998,1744609832748,-500.0,0.00027394,2]
[357947000,1744609832758,-500.0,0.00027394,2]
[357947002,1744609832767,-500.0,0.00027394,2]
[357947004,1744609832777,-500.0,0.00027394,2]
[357947006,1744609832786,-500.0,0.00027394,2]
[357947008,1744609832795,-500.0,0.00027396,2]
[357947010,1744609832805,-538.2650827,0.00027396,2]
[357947012,1744609832815,-514.58019749,0.00027397,2]
[357947014,1744609832825,-659.66,0.00027397,2]
[357947016,1744609832835,-500.0,0.00027397,2]
[357947018,1744609832847,-500.0,0.00027397,2]
[357947020,1744609832858,-548.79599068,0.00027397,2]
[357947022,1744609832869,-500.0,0.00027397,2]
[357947024,1744609832879,-221.68,0.00027397,2]
[357947026,1744609832889,-500.0,0.00027397,2]
[357947028,1744609832899,-1500.0,0.00027397,2]
[357947030,1744609832909,-500.0,0.00027397,2]
[357947032,1744609832918,-500.0,0.00027397,2]
[357947034,1744609832928,-1628.37,0.00027397,2]
[357947036,1744609832937,-500.0,0.00027397,2]
[357947038,1744609832946,-597.4,0.00027397,2]
[357947040,1744609832956,-500.0,0.00027397,2]
[357947042,1744609832966,-500.0,0.00027397,2]
[357947044,1744609832976,-500.0,0.00027397,2]
[357947046,1744609832986,-500.0,0.00027397,2]
[357947049,1744609832996,-500.0,0.00027397,2]
[357947051,1744609833006,-500.0,0.00027397,2]
[357947052,1744609833016,-500.0,0.00027397,2]
[357947054,1744609833025,-372.77874303,0.00027397,2]
[357947056,1744609833036,-500.0,0.00027397,2]
[357947058,1744609833046,-151.0,0.00027397,2]
[357947060,1744609833058,-151.0,0.00027397,2]
[357947062,1744609833068,-151.0,0.00027397,2]
[357947064,1744609833078,-500.0,0.00027397,2]
[357947066,1744609833088,-151.0,0.00027397,2]
[357947068,1744609833098,-500.0,0.00027397,2]
[357947070,1744609833108,-500.0,0.00027397,2]
[357947072,1744609833120,-151.0,0.00027397,2]
[357947074,1744609833131,-151.21993571,0.00027397,2]
[357947076,1744609833140,-191.0096822,0.00027397,2]
[357947078,1744609833151,-446.65,0.00027397,2]
[357947080,1744609833162,-500.0,0.00027397,2]
[357947082,1744609833172,-275.86,0.00027397,2]
[357947085,1744609833188,-500.0,0.00027397,2]
[357947087,1744609833201,-201.83433983,0.00027397,2]
[357947090,1744609833215,-151.0,0.00027397,2]
[357947092,1744609833228,-500.0,0.00027397,2]
[357947094,1744609833241,-153.65013072,0.00027397,2]
[357947097,1744609833255,-500.0,0.00027397,2]
[357947099,1744609833267,-1074.08,0.00027397,2]
[357947101,1744609833279,-500.0,0.00027397,2]
[357947103,1744609833289,-500.0,0.00027397,2]
[357947106,1744609833300,-500.0,0.00027397,2]
[357947108,1744609833314,-500.0,0.00027397,2]
[357947110,1744609833326,-500.0,0.00027397,2]
[357947112,1744609833337,-500.0,0.00027397,2]
[357947114,1744609833349,-500.0,0.00027397,2]
[357947117,1744609833362,-501.62,0.00027397,2]
[357947119,1744609833376,-472.55901706,0.00027397,2]
[357947121,1744609833387,-500.0,0.00027397,2]
[357947123,1744609833400,-500.0,0.00027397,2]
[357947126,1744609833412,-1787.04,0.00027397,2]
[357947128,1744609833425,-500.0,0.00027397,2]
[357947130,1744609833436,-198.95732364,0.00027397,2]
[357947132,1744609833448,-556.9,0.00027397,2]
[357947135,1744609833460,-424.24,0.00027397,2]
[357947137,1744609833472,-1789.94,0.00027397,2]
[357947139,1744609833485,-607.82344258,0.00027397,2]
[357947141,1744609833497,-658.65,0.00027397,2]
[357947144,1744609833509,-500.0,0.00027397,2]
[357947146,1744609833520,-500.0,0.00027397,2]
[357947148,1744609833530,-500.0,0.00027397,2]
[357947150,1744609833541,-500.0,0.00027397,2]
[357947152,1744609833553,-500.0,0.00027397,2]
[357947154,1744609833564,-854.91,0.00027397,2]
[357947157,1744609833576,-500.0,0.00027397,2]
[357947159,1744609833586,-403.99,0.00027397,2]
[357947161,1744609833598,-500.0,0.00027397,2]
[357947163,1744609833608,-500.0,0.00027397,2]
[357947165,1744609833621,-500.0,0.00027397,2]
[357947168,1744609833633,-500.0,0.00027397,2]
[357947170,1744609833646,-471.66260453,0.00027397,2]
[357947172,1744609833657,-500.0,0.00027397,2]
[357947174,1744609833668,-500.0,0.00027397,2]
[357947176,1744609833680,-500.0,0.00027397,2]
[357947179,1744609833691,-500.0,0.00027397,2]
[357947181,1744609833701,-725.59,0.00027397,2]
[357947183,1744609833711,-500.0,0.00027397,2]
[357947185,1744609833721,-500.0,0.00027397,2]
[357947187,1744609833731,-1956.84,0.00027397,2]
[357947189,1744609833745,-1476.35,0.00027397,2]
[357947191,1744609833757,-1536.14,0.00027397,2]
[357947193,1744609833767,-500.0,0.00027397,2]
[357947196,1744609833779,-1134.99,0.00027397,2]
[357947198,1744609833790,-500.0,0.00027397,2]
[357947200,1744609833802,-500.0,0.00027397,2]
[357947202,1744609833813,-580.03,0.00027397,2]
[357947204,1744609833825,-500.0,0.00027397,2]
[357947206,1744609833838,-500.0,0.00027397,2]
[357947209,1744609833852,-500.0,0.00027397,2]
[357947211,1744609833863,-500.0,0.00027397,2]
[357947213,1744609833875,-3146.23,0.00027397,2]
[357947215,1744609833888,-500.0,0.00027397,2]
[357947217,1744609833900,-500.0,0.00027397,2]
[357947219,1744609833911,-500.0,0.00027397,2]
[357947222,1744609833922,-500.0,0.00027397,2]
[357947224,1744609833935,-1124.56,0.00027397,2]
[357947226,1744609833946,-1470.2,0.00027397,2]
[357947228,1744609833958,-197.1308791,0.00027397,2]
[357947231,1744609833971,-204.39811634,0.00027397,2]
[357947233,1744609833981,-151.0,0.00027397,2]
[357947234,1744609833991,-613.06,0.00027397,2]
[357947236,1744609834002,-500.0,0.00027397,2]
[357947238,1744609834013,-500.0,0.00027397,2]
[357947240,1744609834023,-500.0,0.00027397,2]
[357947242,1744609834034,-500.0,0.00027397,2]
[357947244,1744609834044,-934.76,0.00027397,2]
[357947245,1744609834056,-500.0,0.000274,5]
[357947247,1744609834068,-500.0,0.000274,5]
[357947249,1744609834080,-500.0,0.00027405,5]
[357947251,1744609834092,-500.0,0.00027405,5]
[357947253,1744609834104,-500.0,0.00027405,5]
[357947255,1744609834115,-500.0,0.00027406,5]
[357947257,1744609834126,-500.0,0.00027406,5]
[357947259,1744609834136,-500.0,0.0002741,5]
[357947261,1744609834147,-500.0,0.0002741,5]
[357947263,1744609834159,-506.51851674,0.0002741,5]
[357947265,1744609834171,-500.0,0.0002741,5]
[357947267,1744609834182,-504.9951308,0.0002741,5]
[357947269,1744609834193,-500.0,0.0002741,5]
[357947271,1744609834205,-528.0,0.00027452,2]
[357947273,1744609834216,-198.78586101,0.00027452,2]
[357947274,1744609834228,-151.0,0.00027452,2]
[357947276,1744609834239,-151.0,0.00027452,2]
[357947278,1744609834250,-151.2388361,0.00027452,2]
[357947280,1744609834262,-175.0,0.00027452,2]
[357947282,1744609834273,-198.17022161,0.00027452,2]
[357947284,1744609834283,-151.0,0.00027452,2]
[357947285,1744609834293,-151.0,0.00027507,2]
[357947287,1744609834304,-151.0,0.00027507,2]
[357947289,1744609834315,-151.0,0.00027561,2]
[357947291,1744609834325,-253.87737009,0.00027561,2]
[357947293,1744609834336,-151.0,0.00027616,2]
[357947295,1744609834346,-245.0,0.00027671,2]
[357947296,1744609834356,-204.17620102,0.000279,7]
[357947298,1744609834368,-312.45808972,0.00028,10]
[357947300,1744609834379,-273.20474765,0.00029097,2]
[357947302,1744609834390,-156.31,0.000294,2]
[357947304,1744609834400,-420.0,0.0002971,2]
[357947306,1744609834411,-179.65908501,0.00030137,2]
[357947308,1744609834422,-273.20474765,0.00030898,2]
[357947309,1744609834433,-166.24262502,0.00030947,2]
[357947311,1744609834444,-178.0,0.000322,120]
[357947313,1744609834455,-587.0,0.00032249,3]
[357947315,1744609834466,-273.20474765,0.00032698,2]
[357947317,1744609834478,-677.22713853,0.00032869,2]
[357947319,1744609834489,-1000.0,0.00032879,5]
[357947321,1744609834500,-1000.0,0.00032889,5]
[357947323,1744609834511,-250.0,0.00033303,2]
[357947325,1744609834521,-500.0,0.00033973,5]
[357947327,1744609834532,-506.14308643,0.00033973,5]
[357947328,1744609834542,-500.0,0.00033973,5]
[357947330,1744609834556,-500.0,0.00033973,5]
[357947332,1744609834568,-500.0,0.00033973,5]
[357947334,1744609834580,-4063.36283118,0.0003399,2]
[357947336,1744609834593,-17870.07542823,0.00034,30]
[357947341,1744609834645,-72283.97674228,0.00034,30]
[357947343,1744609834659,-187512.37530204,0.00034,30]
[357947349,1744609834714,-920.7534455,0.00034,30]
[357947351,1744609834727,-21412.81908195,0.00034,30]
[357947353,1744609834738,-160.0,0.00034,30]
[357947355,1744609834748,-500.0,0.00034173,5]
[357947357,1744609834759,-500.0,0.00034173,5]
[357947359,1744609834769,-500.0,0.00034173,5]
[357947361,1744609834780,-500.0,0.00034173,5]
[357947363,1744609834791,-500.0,0.00034173,5]
[357947365,1744609834801,-500.0,0.00034173,5]
[357947366,1744609834812,-500.0,0.00034173,5]
[357947368,1744609834822,-500.0,0.00034173,5]
[357947370,1744609834833,-6772.2713853,0.0003419,2]
[357947372,1744609834846,-31008.09479361,0.000342,2]
[357948483,1744609846405,-500.0,0.00027397,2]
[357948484,1744609846415,-626.54,0.00027397,2]
[357948485,1744609846425,-500.0,0.00027397,2]
[357948486,1744609846434,-500.0,0.00027397,2]
[357948487,1744609846445,-500.0,0.00027397,2]
[357948488,1744609846455,-53525.46139596,0.000342,2]
[357948489,1744609846521,-609.45260632,0.000342,2]
[357948490,1744609846531,-856.93773077,0.000342,3]
[357948491,1744609846541,-620.55498392,0.000342,30]
[357948577,1744611038633,-204.17620102,0.000249,5]
[357948579,1744611038643,-300.0,0.00024999,2]
[357948581,1744611038655,-300.0,0.00024999,2]
[357948582,1744611038665,-593.0,0.00025,2]
[357948584,1744611038675,-10218.78176591,0.00025,2]
[357948586,1744611038686,-436.0,0.00025,30]
[357948589,1744611038697,-420.0,0.00027205,2]
[357948590,1744611038706,-419.9901559,0.00027281,2]
[357948593,1744611038716,-1000.0,0.00027292,2]
[357948594,1744611038726,-156.1169987,0.00027294,2]
[357948597,1744611038736,-160.0,0.00027357,2]
[357948599,1744611038745,-160.0,0.00027363,2]
[357948601,1744611038755,-500.0,0.00027393,2]
[357948603,1744611038764,-500.0,0.00027393,2]
[357948605,1744611038774,-500.0,0.00027393,2]
[357948607,1744611038784,-500.0,0.00027393,2]
[357948609,1744611038794,-500.0,0.00027393,2]
[357948611,1744611038804,-500.0,0.00027393,2]
[357948613,1744611038813,-500.0,0.00027393,2]
[357948615,1744611038823,-500.0,0.00027393,2]
[357948617,1744611038832,-500.0,0.00027393,2]
[357948619,1744611038842,-443.761172,0.00027393,2]
[357948621,1744611038852,-496.38525243,0.00027393,2]
[357948623,1744611038862,-500.0,0.00027393,2]
[357948625,1744611038872,-480.0,0.00027393,2]
[357948627,1744611038882,-500.0,0.00027393,2]
[357948629,1744611038892,-500.0,0.00027393,2]
[357948631,1744611038903,-500.0,0.00027393,2]
[357948633,1744611038911,-500.0,0.00027393,2]
[357948635,1744611038921,-500.0,0.00027393,2]
[357948637,1744611038930,-500.0,0.00027393,2]
[357948639,1744611038939,-500.0,0.00027393,2]
[357948641,1744611038947,-500.0,0.00027393,2]
[357948644,1744611038956,-500.0,0.00027393,2]
[357948645,1744611038964,-279.60744676,0.00027393,2]
[357948647,1744611038972,-500.0,0.00027393,2]
[357948649,1744611038980,-500.0,0.00027393,2]
[357948651,1744611038989,-500.0,0.00027393,2]
[357948653,1744611038997,-500.0,0.00027393,2]
[357948655,1744611039007,-500.0,0.00027393,2]
[357948657,1744611039013,-500.0,0.00027393,2]
[357948659,1744611039023,-500.0,0.00027393,2]
[357948661,1744611039032,-500.0,0.00027393,2]
[357948663,1744611039042,-500.0,0.00027393,2]
[357948665,1744611039051,-500.0,0.00027393,2]
[357948667,1744611039061,-500.0,0.00027393,2]
[357948669,1744611039071,-500.0,0.00027393,2]
[357948671,1744611039080,-500.0,0.00027393,2]
[357948673,1744611039088,-500.0,0.00027393,2]
[357948675,1744611039098,-500.0,0.00027393,2]
[357948677,1744611039107,-500.0,0.00027393,2]
[357948679,1744611039116,-500.0,0.00027393,2]
[357948681,1744611039128,-500.0,0.00027393,2]
[357948683,1744611039137,-500.0,0.00027393,2]
[357948685,1744611039150,-500.0,0.00027393,2]
[357948687,1744611039160,-500.0,0.00027393,2]
[357948689,1744611039170,-582.36927738,0.00027396,2]
[357948691,1744611039179,-498.00000001,0.00027397,2]
[357948693,1744611039189,-500.0,0.00027397,2]
[357948695,1744611039198,-500.0,0.00027397,2]
[357948697,1744611039208,-500.0,0.00027397,2]
[357948699,1744611039218,-151.66116561,0.00027397,2]
[357948701,1744611039228,-500.0,0.00027397,2]
[357948703,1744611039241,-198.30600758,0.00027397,2]
[357948705,1744611039251,-250.0,0.00027397,2]
[357948708,1744611039260,-1500.0,0.00027397,2]
[357948710,1744611039270,-500.0,0.00027397,2]
[357948712,1744611039280,-500.0,0.00027397,2]
[357948714,1744611039290,-500.0,0.00027397,2]
[357948715,1744611039299,-500.0,0.00027397,2]
[357948717,1744611039310,-500.0,0.00027397,2]
[357948720,1744611039320,-500.0,0.00027397,2]
[357948722,1744611039328,-500.0,0.00027397,2]
[357948724,1744611039338,-500.0,0.00027397,2]
[357948726,1744611039347,-500.0,0.00027397,2]
[357948727,1744611039356,-360.59,0.00027397,2]
[357948729,1744611039366,-500.0,0.00027397,2]
[357948732,1744611039376,-360.29266153,0.00027397,2]
[357948734,1744611039385,-500.0,0.00027397,2]
[357948735,1744611039396,-546.41,0.00027397,2]
[357948738,1744611039406,-500.0,0.00027397,2]
[357948740,1744611039416,-500.0,0.00027397,2]
[357948742,1744611039425,-166.64,0.00027397,2]
[357948744,1744611039434,-500.0,0.00027397,2]
[357948746,1744611039444,-500.0,0.00027397,2]
[357948748,1744611039453,-1712.58,0.00027397,2]
[357948750,1744611039462,-500.0,0.00027397,2]
[357948752,1744611039471,-467.33278521,0.00027397,2]
[357948754,1744611039481,-500.0,0.00027397,2]
[357948756,1744611039491,-595.0348727,0.00027397,2]
[357948757,1744611039500,-632.17,0.00027397,2]
[357948758,1744611039511,-1715.36,0.00027397,2]
[357948759,1744611039519,-631.2,0.00027397,2]
[357948760,1744611039529,-500.0,0.00027397,2]
[357948761,1744611039538,-500.0,0.00027397,2]
[357948762,1744611039547,-646.72665617,0.00027397,2]
[357948763,1744611039557,-500.0,0.00027397,2]
[357948764,1744611039566,-500.0,0.00027397,2]
[357948765,1744611039575,-500.0,0.00027397,2]
[357948766,1744611039584,-291.9466209,0.00027397,2]
[357948767,1744611039593,-500.0,0.00027397,2]
[357948768,1744611039602,-500.0,0.00027397,2]
[357948769,1744611039611,-500.0,0.00027397,2]
[357948770,1744611039621,-819.29,0.00027397,2]
[357948771,1744611039630,-500.0,0.00027397,2]
[357948772,1744611039639,-500.0,0.00027397,2]
[357948773,1744611039650,-500.0,0.00027397,2]
[357948774,1744611039659,-500.0,0.00027397,2]
[357948775,1744611039668,-305.00879865,0.00027397,2]
[357948776,1744611039678,-500.0,0.00027397,2]
[357948777,1744611039687,-500.0,0.00027397,2]
[357948779,1744611039697,-500.0,0.00027397,2]
[357948781,1744611039707,-1875.3,0.00027397,2]
[357948783,1744611039717,-695.36,0.00027397,2]
[357948785,1744611039726,-1087.69,0.00027397,2]
[357948787,1744611039737,-166.58,0.00027397,2]
[357948789,1744611039746,-1472.13,0.00027397,2]
[357948791,1744611039755,-500.0,0.00027397,2]
[357948793,1744611039764,-500.0,0.00027397,2]
[357948795,1744611039774,-1414.84,0.00027397,2]
[357948797,1744611039783,-500.0,0.00027397,2]
[357948799,1744611039793,-500.0,0.00027397,2]
[357948801,1744611039802,-151.0,0.00027397,2]
[357948803,1744611039811,-503.8389519,0.00027397,2]
[357948805,1744611039821,-166.13,0.00027397,2]
[357948807,1744611039830,-500.0,0.00027397,2]
[357948809,1744611039840,-3015.14,0.00027397,2]
[357948811,1744611039849,-500.0,0.00027397,2]
[357948813,1744611039859,-500.0,0.00027397,2]
[357948815,1744611039868,-500.0,0.00027397,2]
[357948817,1744611039878,-500.0,0.00027397,2]
[357948819,1744611039887,-587.52,0.00027397,2]
[357948821,1744611039897,-1077.7,0.00027397,2]
[357948823,1744611039908,-500.0,0.00027397,2]
[357948825,1744611039918,-895.81,0.00027397,2]
[357948827,1744611039927,-1408.94,0.00027397,2]
[357948829,1744611039938,-500.0,0.00027397,2]
[357948831,1744611039947,-1003.22,0.00027397,2]
[357948833,1744611039957,-500.0,0.00027397,2]
[357948835,1744611039967,-500.0,0.00027397,2]
[357948837,1744611039976,-500.0,0.00027397,2]
[357948839,1744611039986,-1560.52,0.00027397,2]
[357948841,1744611039995,-578.09947773,0.00027397,2]
[357948843,1744611040004,-500.0,0.00027397,2]
[357948845,1744611040014,-500.0,0.00027397,2]
[357948847,1744611040023,-228.56,0.00027397,2]
[357948849,1744611040033,-500.0,0.00027397,5]
[357948851,1744611040043,-500.0,0.00027438,5]
[357948853,1744611040053,-500.0,0.00027452,2]
[357948855,1744611040063,-500.0,0.00027452,2]
[357948857,1744611040072,-500.0,0.00027507,2]
[357948859,1744611040082,-500.0,0.00027507,2]
[357948861,1744611040092,-812.67256624,0.00027508,2]
[357948863,1744611040101,-120129.64812036,0.00027518,2]
[357948866,1744611040115,-3806.41966847,0.00027518,2]
[357948868,1744611040126,-27752.36771797,0.00027518,2]
[357948870,1744611040137,-5655.43906897,0.00027518,2]
[357948872,1744611040148,-2064.8091959,0.00027518,2]
[357948874,1744611040160,-388.84957946,0.00027518,2]
[357948960,1744611040941,-7696.44,0.00027518,2]
[357948962,1744611040953,-1791.40896217,0.00027518,2]
[357948969,1744611041011,-7435.41270457,0.00027518,2]
[357949214,1744611043636,-500.0,0.00027397,2]
[357949215,1744611043645,-1561.52148577,0.00027518,2]
[357949223,1744611046684,-151.53910402,0.00027297,2]
[357949224,1744611046696,-500.0,0.00027397,2]
[357949225,1744611046706,-500.0,0.00027397,2]
[357949226,1744611046717,-491.14423359,0.00027397,2]
[357949227,1744611046727,-60152.86262174,0.00027518,2]
[357949228,1744611046763,-151.53910398,0.00027338,2]
[357949229,1744611046774,-348.46089602,0.00027518,2]
[357949299,1744612231919,-160.0,0.00024795,2]
[357949300,1744612231931,-1000.0,0.000248,2]
[357949301,1744612231942,-295.0720956,0.00025807,2]
[357949302,1744612231951,-160.0,0.00026,2]
[357949303,1744612231961,-600.0,0.00026085,2]
[357949304,1744612231971,-500.0,0.00026252,2]
[357949305,1744612231980,-300.0,0.0002628,2]
[357949306,1744612231989,-7007.30424007,0.00026281,2]
[357949307,1744612232000,-160.0,0.00026281,2]
[357949308,1744612232009,-160.0,0.00026281,2]
[357949309,1744612232020,-160.0,0.00026281,2]
[357949310,1744612232030,-838.51730609,0.00026281,2]
[357949311,1744612232040,-160.0,0.00026281,2]
[357949312,1744612232049,-600.0,0.00026414,2]
[357949313,1744612232059,-500.0,0.00026623,2]
[357949314,1744612232068,-600.0,0.00026791,2]
[357949315,1744612232078,-500.0,0.00026835,2]
[357949316,1744612232088,-500.0,0.00026923,2]
[357949317,1744612232097,-200.0,0.00027,120]
[357949318,1744612232107,-380.23035,0.00027,120]